[Event "DVM U12 2024"]
[Site "Heidelberg"]
[Date "2024.12.28"]
[Round "3"]
[White "Classen, Marnin"]
[Black "Fadeev, Justin Michael"]
[Result "0-1"]
[ECO "B25"]
[WhiteElo "1632"]
[BlackElo "1894"]
[Annotator "NA RC"]
[PlyCount "132"]
[EventDate "2024.12.23"]
[EventType "team-tourn"]
[EventRounds "7"]
[EventCountry "GER"]
[SourceTitle "playchess.com"]
[Source "ChessBase"]
[SourceQuality "1"]
[TimeControl "40/5400+30:1800+30"]

1. e4 {[%emt 0:00:01]} c5 {[%emt 0:00:18]} 2. Nc3 {[%emt 0:00:10]} Nc6 {[%emt 0:00:01]} 3. f4 {[%emt 0:00:14]} g6 {[%emt 0:00:35]} 4. g3 {[%emt 0:00:10]} Bg7 {[%emt 0:00:08]} 5. Bg2 {[%emt 0:00:08]} d6 {[%emt 0:01:28]} 6. Nf3 {[%emt 0:00:18]} e6 {[%emt 0:01:25]} 7. O-O {[%emt 0:00:19]} Nge7 {[%emt 0:00:20]} 8. d3 {[%emt 0:00:25]} O-O {[%emt 0:00:28]} 9. Bd2 {[%emt 0:00:58]} a6 {[%emt 0:05:24]} 10. a3 {[%emt 0:02:09]} b5 {[%emt 0:01:38]} 11. Rb1 {[%emt 0:00:36]} Bb7 {[%emt 0:06:43]} 12. Be1 {[%emt 0:00:23]} Rc8 {[%emt 0:02:07]} 13. Bf2 {[%emt 0:00:24]} Qc7 {[%emt 0:04:55]} 14. Qd2 {[%emt 0:00:57]} Nd4 {[%emt 0:03:42]} 15. Rfc1 {[%emt 0:01:19]} Nec6 {[%emt 0:01:11]} 16. Ne2 {[%emt 0:01:09]} Rfd8 {[%emt 0:03:21]} 17. Nexd4 {[%emt 0:00:56]} Nxd4 {[%emt 0:00:38]} 18. Nxd4 {[%emt 0:00:16]} cxd4 {[%emt 0:00:32]} 19. Qb4 {[%emt 0:00:38]} Qd7 {[%emt 0:05:14]} 20. Qd2 {[%emt 0:01:40]} Rc7 {[%emt 0:01:20]} 21. Re1 {[%emt 0:01:27]} Rdc8 {[%emt 0:00:18]} 22. Rbc1 {[%emt 0:00:22]} Qc6 {[%emt 0:02:57]} 23. Kh1 {[%emt 0:01:18]} Qb6 {[%emt 0:02:56]} 24. Bg1 {[%emt 0:01:32]} a5 {[%emt 0:00:35]} 25. Re2 {[%emt 0:03:56]} b4 {[%emt 0:00:50]} 26. axb4 {[%emt 0:00:12]} axb4 {[%emt 0:01:54]} 27. b3 {[%emt 0:01:10]} Rc3 {[%emt 0:00:35]} 28. Qd1 {[%emt 0:01:53]} Qc5 {[%emt 0:01:17]} 29. Rd2 {[%emt 0:00:50]} Rxb3 {[%emt 0:01:10]} 30. Rb1 {[%emt 0:02:16]} Rxb1 {[%emt 0:04:16]} 31. Qxb1 {[%emt 0:00:17]} Bc6 {[%emt 0:01:01]} 32. Bf3 {[%emt 0:00:36]} Qc3 {[%emt 0:02:05]} 33. Rf2 {[%emt 0:00:24]} Ra8 {[%emt 0:02:28]} 34. Rf1 {[%emt 0:00:11]} Ra3 {[%emt 0:01:36]} 35. Bf2 {[%emt 0:00:33]} b3 {[%emt 0:01:53]} 36. Be1 {[%emt 0:02:07]} Qxc2 {[%emt 0:00:58]} 37. Qxc2 {[%emt 0:00:26]} bxc2 {[%emt 0:00:04]} 38. Bb4 {[%emt 0:00:15]} Rb3 {[%emt 0:00:32]} 39. Bd2 {[%emt 0:00:12]} Rxd3 {[%emt 0:00:22]} 40. Bc1 {[%emt 0:00:05]} Rxf3 {[%emt 0:00:26]} 41. Rxf3 {[%emt 0:30:06]} Bxe4 {[%emt 0:30:03]} 42. Kg2 {[%emt 0:00:09]} d3 {[%emt 0:00:05]} 43. Kf2 {[%emt 0:00:14]} Bxf3 {[%emt 0:00:04]} 44. Kxf3 {[%emt 0:00:15]} d2 {[%emt 0:00:02]} 45. Bxd2 {[%emt 0:00:13]} Bb2 {[%emt 0:00:03]} 46. Ke3 {[%emt 0:00:12]} c1=Q {[%emt 0:00:04]} 47. Bxc1 {[%emt 0:00:19]} Bxc1+ {[%emt 0:00:03]} 48. Kd4 {[%emt 0:00:06]} Kg7 {[%emt 0:00:06]} 49. h3 {[%emt 0:00:07]} Kf6 {[%emt 0:00:04]} 50. Ke4 {[%emt 0:00:06]} d5+ {[%emt 0:00:04]} 51. Kd4 {[%emt 0:00:07]} Kf5 {[%emt 0:00:05]} 52. Kd3 {[%emt 0:00:11]} Bxf4 {[%emt 0:00:06]} 53. gxf4 {[%emt 0:00:06]} Kxf4 {[%emt 0:00:02]} 54. Ke2 {[%emt 0:00:08]} Kg3 {[%emt 0:00:03]} 55. Ke3 {[%emt 0:00:07]} Kxh3 {[%emt 0:00:04]} 56. Kf3 {[%emt 0:00:05]} g5 {[%emt 0:00:05]} 57. Kf2 {[%emt 0:00:04]} d4 {[%emt 0:00:05]} 58. Ke2 {[%emt 0:00:04]} g4 {[%emt 0:00:03]} 59. Kf2 {[%emt 0:00:03]} g3+ {[%emt 0:00:04]} 60. Kg1 {[%emt 0:00:32]} d3 {[%emt 0:00:08]} 61. Kf1 {[%emt 0:00:04]} d2 {[%emt 0:00:46]} 62. Ke2 {[%emt 0:00:30]} g2 {[%emt 0:00:11]} 63. Kf2 {[%emt 0:00:27]} d1=Q {[%emt 0:00:07]} 64. Ke3 {[%emt 0:00:17]} g1=Q+ {[%emt 0:00:05]} 65. Kf4 {[%emt 0:00:08]} Qdd4+ {[%emt 0:00:07]} 66. Kf3 {[%emt 0:00:12]} Qgf2# {[%emt 0:00:37]} 0-1

[Event "DVM U12 2024"]
[Site "Heidelberg"]
[Date "2024.12.28"]
[Round "3"]
[White "Rudolph, Simon"]
[Black "Sriram, Aumkar"]
[Result "1/2-1/2"]
[ECO "A90"]
[WhiteElo "1614"]
[BlackElo "1610"]
[Annotator "NA"]
[PlyCount "88"]
[EventDate "2024.12.23"]
[EventType "team-tourn"]
[EventRounds "7"]
[EventCountry "GER"]
[SourceTitle "playchess.com"]
[Source "ChessBase"]
[SourceQuality "1"]
[TimeControl "40/5400+30:1800+30"]

1. d4 {[%emt 0:00:24]} e6 {[%emt 0:00:18]} 2. c4 {[%emt 0:00:05]} f5 {[%emt 0:00:11]} 3. g3 {[%emt 0:00:06]} Nf6 {[%emt 0:00:10]} 4. Nc3 {[%emt 0:00:07]} c6 {[%emt 0:00:29]} 5. Bg2 {[%emt 0:00:16]} d5 {[%emt 0:00:29]} 6. Nf3 {[%emt 0:00:17]} Bd6 {[%emt 0:00:18]} 7. O-O {[%emt 0:00:27]} O-O {[%emt 0:00:19]} 8. a3 {[%emt 0:03:39]} Bd7 {[%emt 0:00:41]} 9. c5 {[%emt 0:00:27]} Bc7 {[%emt 0:00:51]} 10. b4 {[%emt 0:00:39]} a5 {[%emt 0:03:48]} 11. Bd2 {[%emt 0:02:00]} axb4 {[%emt 0:01:39]} 12. axb4 {[%emt 0:00:27]} Rxa1 {[%emt 0:00:13]} 13. Qxa1 {[%emt 0:00:04]} Na6 {[%emt 0:00:39]} 14. Rb1 {[%emt 0:01:54]} Ne4 {[%emt 0:02:20]} 15. Nxe4 {[%emt 0:03:11]} fxe4 {[%emt 0:05:15]} 16. Bg5 {[%emt 0:01:53]} Qe8 {[%emt 0:05:16]} 17. Ne5 {[%emt 0:05:06]} Bxe5 {[%emt 0:01:27]} 18. dxe5 {[%emt 0:00:14]} Qh5 {[%emt 0:02:06]} 19. Be3 {[%emt 0:03:57]} Qxe2 {[%emt 0:03:06]} 20. Qd4 {[%emt 0:13:01]} Qh5 {[%emt 0:06:53]} 21. Bxe4 {[%emt 0:00:54]} Nc7 {[%emt 0:10:47]} 22. Bg2 {[%emt 0:01:09]} Nb5 {[%emt 0:01:31]} 23. Qd2 {[%emt 0:02:43]} Qxe5 {[%emt 0:06:46]} 24. Re1 {[%emt 0:02:23]} Qc3 {[%emt 0:01:58]} 25. Qxc3 {[%emt 0:03:06]} Nxc3 {[%emt 0:00:58]} 26. Bd2 {[%emt 0:00:38]} Nb5 {[%emt 0:00:05]} 27. f4 {[%emt 0:02:22]} h6 {[%emt 0:03:14]} 28. Bh3 {[%emt 0:02:59]} Nd4 {[%emt 0:02:51]} 29. Kf2 {[%emt 0:00:28]} h5 {[%emt 0:03:56]} 30. Bc3 {[%emt 0:00:54]} Nb5 {[%emt 0:00:14]} 31. Bb2 {[%emt 0:00:31]} g5 {[%emt 0:04:35]} 32. Bxe6+ {[%emt 0:12:54]} Bxe6 {[%emt 0:00:33]} 33. Rxe6 {[%emt 0:00:08]} gxf4 {[%emt 0:01:37]} 34. Re7 {[%emt 0:01:08]} fxg3+ {[%emt 0:01:17]} 35. Kxg3 {[%emt 0:00:11]} Rf7 {[%emt 0:00:54]} 36. Re8+ {[%emt 0:00:27]} Kh7 {[%emt 0:00:26]} 37. Kh4 {[%emt 0:01:37]} Kg6 {[%emt 0:02:06]} 38. Bc1 {[%emt 0:04:12]} Rf1 {[%emt 0:01:18]} 39. Bg5 {[%emt 0:02:04]} Rb1 {[%emt 0:00:53]} 40. Re6+ {[%emt 0:03:07]} Kf5 {[%emt 0:01:45]} 41. Rf6+ {[%emt 0:30:28]} Ke5 {[%emt 0:30:36]} 42. Kxh5 {[%emt 0:00:14]} Rxb4 {[%emt 0:00:47]} 43. h4 {[%emt 0:00:14]} d4 {[%emt 0:00:11]} 44. Kg6 {[%emt 0:00:38]} Nc3 {[%emt 0:03:45]} 1/2-1/2

[Event "DVM U12 2024"]
[Site "Heidelberg"]
[Date "2024.12.28"]
[Round "3"]
[White "Pflugbeil, Julian"]
[Black "Menke, Raphael Wilhelm"]
[Result "0-1"]
[ECO "C11"]
[WhiteElo "1586"]
[BlackElo "1742"]
[Annotator "NA COMBH"]
[PlyCount "82"]
[EventDate "2024.12.23"]
[EventType "team-tourn"]
[EventRounds "7"]
[EventCountry "GER"]
[SourceTitle "playchess.com"]
[Source "ChessBase"]
[SourceQuality "1"]
[TimeControl "40/5400+30:1800+30"]

1. d4 {[%emt 0:00:01]} Nf6 {[%emt 0:00:16]} 2. Nc3 {[%emt 0:00:04]} e6 {[%emt 0:00:55]} 3. e4 {[%emt 0:00:04]} d5 {[%emt 0:00:21]} 4. e5 {[%emt 0:00:08]} Nfd7 {[%emt 0:00:09]} 5. Nce2 {[%emt 0:00:13]} c5 {[%emt 0:00:35]} 6. c3 {[%emt 0:00:03]} Nc6 {[%emt 0:00:08]} 7. f4 {[%emt 0:00:07]} Be7 {[%emt 0:00:58]} 8. Nf3 {[%emt 0:00:04]} O-O {[%emt 0:01:38]} 9. g3 {[%emt 0:00:30]} b5 {[%emt 0:02:14]} 10. Bg2 {[%emt 0:00:45]} Nb6 {[%emt 0:00:32]} 11. O-O {[%emt 0:00:10]} c4 {[%emt 0:00:35]} 12. a3 {[%emt 0:00:32]} Na5 {[%emt 0:00:34]} 13. Be3 {[%emt 0:01:16]} Nb3 {[%emt 0:00:22]} 14. Rb1 {[%emt 0:00:13]} a5 {[%emt 0:00:06]} 15. Nc1 {[%emt 0:00:29]} a4 {[%emt 0:00:04]} 16. Qc2 {[%emt 0:00:37]} Bd7 {[%emt 0:02:11]} 17. h4 {[%emt 0:00:29]} Be8 {[%emt 0:01:22]} 18. Ng5 {[%emt 0:01:09]} Bxg5 {[%emt 0:02:19]} 19. fxg5 {[%emt 0:00:34]} f5 {[%emt 0:01:09]} 20. gxf6 {[%emt 0:00:09]} Bg6 {[%emt 0:00:19]} 21. Qf2 {[%emt 0:01:38]} Bxb1 {[%emt 0:00:10]} 22. f7+ {[%emt 0:00:15]} Kh8 {[%emt 0:00:05]} 23. Bg5 {[%emt 0:00:08]} Qd7 {[%emt 0:00:19]} 24. Nxb3 {[%emt 0:00:34]} cxb3 {[%emt 0:00:25]} 25. Rxb1 {[%emt 0:00:35]} Qxf7 {[%emt 0:00:34]} 26. Bf4 {[%emt 0:00:17]} Nc4 {[%emt 0:00:14]} 27. Qe2 {[%emt 0:00:36]} Rae8 {[%emt 0:00:22]} 28. Rf1 {[%emt 0:00:05]} Qg6 {[%emt 0:00:42]} 29. Kh2 {[%emt 0:02:41]} Qc2 {[%emt 0:01:12]} 30. Qh5 {[%emt 0:01:46]} Nxb2 {[%emt 0:00:16]} 31. Be3 {[%emt 0:07:24]} Qg6 {[%emt 0:00:45]} 32. Qe2 {[%emt 0:01:11]} Rxf1 {[%emt 0:00:12]} 33. Qxf1 {[%emt 0:00:13]} Nc4 {[%emt 0:00:06]} 34. Bc1 {[%emt 0:01:20]} Qf5 {[%emt 0:01:04]} 35. Qe2 {[%emt 0:00:17]} Rf8 {[%emt 0:00:33]} 36. Kg1 {[%emt 0:00:09]} Qb1 {[%emt 0:00:26]} 37. Kh2 {[%emt 0:01:29]} Qxc1 {[%emt 0:00:09]} 38. Qg4 {[%emt 0:00:31]} b2 {[%emt 0:00:28]} 39. Qxe6 {[%emt 0:00:31]} b1=Q {[%emt 0:00:06]} 40. Qe7 {[%emt 0:00:03]} Qg1+ {[%emt 0:00:42]} 41. Kh3 {[%emt 0:30:42]} Qf5+ {[%emt 0:30:06]} 0-1

[Event "DVM U12 2024"]
[Site "Heidelberg"]
[Date "2024.12.28"]
[Round "3"]
[White "Liu, Kairui"]
[Black "Balthasar, Johann"]
[Result "0-1"]
[ECO "B72"]
[WhiteElo "1559"]
[BlackElo "1317"]
[Annotator "NA"]
[PlyCount "64"]
[EventDate "2024.12.23"]
[EventType "team-tourn"]
[EventRounds "7"]
[EventCountry "GER"]
[SourceTitle "playchess.com"]
[Source "ChessBase"]
[SourceQuality "1"]
[TimeControl "40/5400+30:1800+30"]

1. e4 {[%emt 0:00:02]} c5 {[%emt 0:00:06]} 2. Nf3 {[%emt 0:00:05]} d6 {[%emt 0:00:07]} 3. d4 {[%emt 0:00:05]} cxd4 {[%emt 0:00:07]} 4. Nxd4 {[%emt 0:00:05]} Nf6 {[%emt 0:00:09]} 5. Nc3 {[%emt 0:00:08]} g6 {[%emt 0:00:08]} 6. h3 {[%emt 0:01:18]} Bg7 {[%emt 0:00:34]} 7. Be3 {[%emt 0:00:09]} O-O {[%emt 0:00:54]} 8. Qd2 {[%emt 0:02:18]} Nc6 {[%emt 0:00:12]} 9. Nb3 {[%emt 0:00:58]} Bd7 {[%emt 0:02:17]} 10. O-O-O {[%emt 0:00:41]} a5 {[%emt 0:00:46]} 11. a3 {[%emt 0:03:07]} Rb8 {[%emt 0:06:02]} 12. Kb1 {[%emt 0:01:25]} b6 {[%emt 0:10:47]} 13. Be2 {[%emt 0:05:13]} Qc7 {[%emt 0:03:06]} 14. g4 {[%emt 0:01:56]} Na7 {[%emt 0:02:21]} 15. Ka2 {[%emt 0:03:48]} Be6 {[%emt 0:01:14]} 16. g5 {[%emt 0:04:19]} Nd7 {[%emt 0:01:35]} 17. Nd5 {[%emt 0:04:18]} Bxd5 {[%emt 0:02:11]} 18. exd5 {[%emt 0:01:08]} Rfc8 {[%emt 0:02:39]} 19. Rc1 {[%emt 0:03:27]} Nc5 {[%emt 0:02:42]} 20. Nxc5 {[%emt 0:03:33]} bxc5 {[%emt 0:00:23]} 21. c3 {[%emt 0:00:37]} Rb6 {[%emt 0:01:26]} 22. h4 {[%emt 0:02:04]} Rcb8 {[%emt 0:00:35]} 23. Rb1 {[%emt 0:01:36]} Qb7 {[%emt 0:01:10]} 24. h5 {[%emt 0:02:31]} Nb5 {[%emt 0:00:40]} 25. Bxb5 {[%emt 0:01:13]} Rxb5 {[%emt 0:00:02]} 26. f4 {[%emt 0:04:56]} Rb3 {[%emt 0:00:25]} 27. hxg6 {[%emt 0:07:01]} fxg6 {[%emt 0:00:24]} 28. Qc1 {[%emt 0:04:46]} Qxd5 {[%emt 0:02:22]} 29. c4 {[%emt 0:01:36]} Qg2 {[%emt 0:02:46]} 30. Qd2 {[%emt 0:03:18]} Rxb2+ {[%emt 0:00:19]} 31. Rxb2 {[%emt 0:00:22]} Rxb2+ {[%emt 0:00:17]} 32. Qxb2 {[%emt 0:00:29]} Qxb2# {[%emt 0:00:15]} 0-1

[Event "DVM U12 2024"]
[Site "Heidelberg"]
[Date "2024.12.28"]
[Round "3"]
[White "Tuktamyshev, Timur"]
[Black "Zhao, Yunsheng"]
[Result "0-1"]
[ECO "C58"]
[WhiteElo "1531"]
[BlackElo "1630"]
[Annotator "NA"]
[PlyCount "130"]
[EventDate "2024.12.23"]
[EventType "team-tourn"]
[EventRounds "7"]
[EventCountry "GER"]
[SourceTitle "playchess.com"]
[Source "ChessBase"]
[SourceQuality "1"]
[TimeControl "40/5400+30:1800+30"]

1. e4 {[%emt 0:00:02]} e5 {[%emt 0:00:05]} 2. Nf3 {[%emt 0:00:02]} Nc6 {[%emt 0:00:05]} 3. Bc4 {[%emt 0:00:03]} Nf6 {[%emt 0:00:05]} 4. Ng5 {[%emt 0:00:09]} d5 {[%emt 0:00:06]} 5. exd5 {[%emt 0:00:03]} Na5 {[%emt 0:00:05]} 6. Bb5+ {[%emt 0:00:04]} Bd7 {[%emt 0:00:04]} 7. Qe2 {[%emt 0:03:43]} Be7 {[%emt 0:00:08]} 8. Bxd7+ {[%emt 0:02:37]} Qxd7 {[%emt 0:00:07]} 9. Nc3 {[%emt 0:01:33]} Nxd5 {[%emt 0:03:23]} 10. Qxe5 {[%emt 0:11:08]} O-O-O {[%emt 0:22:43]} 11. Nxf7 {[%emt 0:05:14]} Bf6 {[%emt 0:05:02]} 12. Qxd5 {[%emt 0:01:27]} Rhe8+ {[%emt 0:00:55]} 13. Kd1 {[%emt 0:01:19]} Qxd5 {[%emt 0:00:58]} 14. Nxd5 {[%emt 0:00:14]} Rxd5 {[%emt 0:00:04]} 15. f4 {[%emt 0:02:55]} Nc4 {[%emt 0:04:52]} 16. Ne5 {[%emt 0:02:42]} Ne3+ {[%emt 0:00:54]} 17. Ke2 {[%emt 0:01:48]} Nxc2 {[%emt 0:00:55]} 18. Rb1 {[%emt 0:00:26]} Bxe5 {[%emt 0:01:12]} 19. fxe5 {[%emt 0:00:07]} Rexe5+ {[%emt 0:00:03]} 20. Kf2 {[%emt 0:00:23]} Nb4 {[%emt 0:02:00]} 21. Rd1 {[%emt 0:06:53]} Rf5+ {[%emt 0:08:38]} 22. Kg3 {[%emt 0:00:53]} Rd6 {[%emt 0:00:37]} 23. h4 {[%emt 0:03:35]} Rg6+ {[%emt 0:00:18]} 24. Kh3 {[%emt 0:02:10]} Nd3 {[%emt 0:01:14]} 25. Rg1 {[%emt 0:00:36]} Nf4+ {[%emt 0:00:53]} 26. Kh2 {[%emt 0:00:04]} Ne2 {[%emt 0:00:10]} 27. g4 {[%emt 0:01:41]} Rf2+ {[%emt 0:00:25]} 28. Rg2 {[%emt 0:00:05]} Rxg2+ {[%emt 0:00:58]} 29. Kxg2 {[%emt 0:00:06]} Nxc1 {[%emt 0:00:47]} 30. Rxc1 {[%emt 0:00:51]} Rxg4+ {[%emt 0:00:06]} 31. Kh3 {[%emt 0:00:06]} Rd4 {[%emt 0:00:20]} 32. Rg1 {[%emt 0:03:03]} g6 {[%emt 0:00:18]} 33. Rg2 {[%emt 0:00:17]} Kd7 {[%emt 0:01:25]} 34. Re2 {[%emt 0:00:35]} Kd6 {[%emt 0:00:50]} 35. Kg3 {[%emt 0:00:19]} c6 {[%emt 0:01:20]} 36. Rh2 {[%emt 0:00:19]} h6 {[%emt 0:01:53]} 37. Kf3 {[%emt 0:00:36]} Kc5 {[%emt 0:00:10]} 38. Ke3 {[%emt 0:00:35]} Rg4 {[%emt 0:06:26]} 39. d3 {[%emt 0:02:34]} Kd5 {[%emt 0:01:41]} 40. h5 {[%emt 0:02:15]} g5 {[%emt 0:00:46]} 41. Rf2 {[%emt 0:31:47]} Rg3+ {[%emt 0:30:55]} 42. Rf3 {[%emt 0:01:05]} Rxf3+ {[%emt 0:00:06]} 43. Kxf3 {[%emt 0:00:01]} Kd4 {[%emt 0:00:07]} 44. Ke2 {[%emt 0:00:05]} c5 {[%emt 0:00:11]} 45. a3 {[%emt 0:00:48]} b5 {[%emt 0:00:15]} 46. Kd2 {[%emt 0:00:17]} g4 {[%emt 0:00:05]} 47. b4 {[%emt 0:00:09]} c4 {[%emt 0:00:08]} 48. dxc4 {[%emt 0:00:15]} Kxc4 {[%emt 0:00:09]} 49. Ke3 {[%emt 0:00:06]} Kb3 {[%emt 0:00:06]} 50. Kf4 {[%emt 0:00:04]} g3 {[%emt 0:00:05]} 51. Kxg3 {[%emt 0:00:04]} Kxa3 {[%emt 0:00:08]} 52. Kf4 {[%emt 0:00:02]} Kxb4 {[%emt 0:00:06]} 53. Kf5 {[%emt 0:00:01]} a5 {[%emt 0:00:06]} 54. Kg6 {[%emt 0:00:02]} a4 {[%emt 0:00:04]} 55. Kxh6 {[%emt 0:00:02]} a3 {[%emt 0:00:05]} 56. Kg6 {[%emt 0:00:03]} a2 {[%emt 0:00:04]} 57. h6 {[%emt 0:00:01]} a1=Q {[%emt 0:00:03]} 58. h7 {[%emt 0:00:07]} Qh8 {[%emt 0:01:23]} 59. Kh6 {[%emt 0:00:09]} Kc5 {[%emt 0:00:09]} 60. Kg6 {[%emt 0:00:02]} b4 {[%emt 0:00:04]} 61. Kh6 {[%emt 0:00:04]} b3 {[%emt 0:00:11]} 62. Kg6 {[%emt 0:00:16]} b2 {[%emt 0:00:04]} 63. Kh6 {[%emt 0:00:02]} b1=Q {[%emt 0:00:34]} 64. Kg5 {[%emt 0:00:03]} Qhxh7 {[%emt 0:00:13]} 65. Kf6 {[%emt 0:00:06]} Qbf5# {[%emt 0:00:38]} 0-1

[Event "DVM U12 2024"]
[Site "Heidelberg"]
[Date "2024.12.28"]
[Round "3"]
[White "Cetinalp, Poyraz"]
[Black "Lu, Alexander"]
[Result "1/2-1/2"]
[ECO "B12"]
[WhiteElo "1530"]
[BlackElo "1571"]
[Annotator "NA RC"]
[PlyCount "183"]
[EventDate "2024.12.23"]
[EventType "team-tourn"]
[EventRounds "7"]
[EventCountry "GER"]
[SourceTitle "playchess.com"]
[Source "ChessBase"]
[SourceQuality "1"]
[TimeControl "40/5400+30:1800+30"]

1. e4 {[%emt 0:00:01]} c6 {[%emt 0:00:03]} 2. d4 {[%emt 0:00:04]} d5 {[%emt 0:00:03]} 3. e5 {[%emt 0:00:06]} c5 {[%emt 0:00:04]} 4. dxc5 {[%emt 0:00:04]} Nc6 {[%emt 0:00:06]} 5. Nf3 {[%emt 0:02:05]} Bg4 {[%emt 0:00:38]} 6. Bb5 {[%emt 0:03:32]} e6 {[%emt 0:01:00]} 7. h3 {[%emt 0:00:58]} Bxf3 {[%emt 0:00:12]} 8. Qxf3 {[%emt 0:00:15]} Bxc5 {[%emt 0:00:27]} 9. Qc3 {[%emt 0:02:40]} Qb6 {[%emt 0:01:39]} 10. Bxc6+ {[%emt 0:03:54]} bxc6 {[%emt 0:00:04]} 11. Qg3 {[%emt 0:07:31]} Ne7 {[%emt 0:09:20]} 12. O-O {[%emt 0:04:20]} Kd7 {[%emt 0:06:08]} 13. Nc3 {[%emt 0:22:16]} Bd4 {[%emt 0:07:31]} 14. Rb1 {[%emt 0:11:42]} Ng6 {[%emt 0:03:45]} 15. Re1 {[%emt 0:02:33]} Raf8 {[%emt 0:04:29]} 16. Be3 {[%emt 0:14:08]} Bxe3 {[%emt 0:05:43]} 17. Rxe3 {[%emt 0:01:03]} f5 {[%emt 0:02:44]} 18. f4 {[%emt 0:01:20]} Qd4 {[%emt 0:04:40]} 19. Rf1 {[%emt 0:02:21]} Rb8 {[%emt 0:02:29]} 20. b3 {[%emt 0:00:51]} Kc7 {[%emt 0:01:49]} 21. Kh2 {[%emt 0:01:59]} Qb4 {[%emt 0:02:57]} 22. Rd3 {[%emt 0:01:38]} Qc5 {[%emt 0:03:38]} 23. Qf2 {[%emt 0:00:56]} Qxf2 {[%emt 0:01:38]} 24. Rxf2 {[%emt 0:00:07]} h5 {[%emt 0:01:15]} 25. g3 {[%emt 0:01:13]} h4 {[%emt 0:00:12]} 26. g4 {[%emt 0:00:33]} fxg4 {[%emt 0:00:10]} 27. hxg4 {[%emt 0:00:11]} Rb4 {[%emt 0:00:30]} 28. Rdf3 {[%emt 0:02:08]} Kd7 {[%emt 0:01:08]} 29. a3 {[%emt 0:00:23]} Rd4 {[%emt 0:01:43]} 30. Kh3 {[%emt 0:00:53]} Rf8 {[%emt 0:02:13]} 31. f5 {[%emt 0:02:06]} exf5 {[%emt 0:00:31]} 32. Rxf5 {[%emt 0:01:11]} Rxf5 {[%emt 0:00:27]} 33. Rxf5 {[%emt 0:00:24]} Rf4 {[%emt 0:00:59]} 34. Rxf4 {[%emt 0:01:03]} Nxf4+ {[%emt 0:00:04]} 35. Kxh4 {[%emt 0:00:13]} Ng6+ {[%emt 0:00:08]} 36. Kg5 {[%emt 0:00:28]} Nxe5 {[%emt 0:00:14]} 37. Ne2 {[%emt 0:00:40]} Nf3+ {[%emt 0:00:55]} 38. Kg6 {[%emt 0:00:06]} Ne5+ {[%emt 0:00:13]} 39. Kxg7 {[%emt 0:00:07]} Nxg4 {[%emt 0:00:04]} 40. Kf7 {[%emt 0:01:05]} Ne3 {[%emt 0:00:37]} 41. c3 {[%emt 0:30:11]} Nc2 {[%emt 0:31:23]} 42. a4 {[%emt 0:01:52]} c5 {[%emt 0:01:43]} 43. Kf6 {[%emt 0:01:54]} Kd6 {[%emt 0:00:11]} 44. Kf5 {[%emt 0:00:54]} a5 {[%emt 0:01:17]} 45. Kf4 {[%emt 0:01:08]} Na1 {[%emt 0:00:20]} 46. Nc1 {[%emt 0:00:17]} Ke6 {[%emt 0:00:37]} 47. Ke3 {[%emt 0:06:07]} Nc2+ {[%emt 0:01:12]} 48. Kd2 {[%emt 0:02:12]} Na1 {[%emt 0:01:00]} 49. Kd3 {[%emt 0:00:00]} Ke5 {[%emt 0:00:00]} 50. Kd2 {[%emt 0:00:00]} Ke6 {[%emt 0:00:00]} 51. Kd3 {[%emt 0:00:00]} Ke5 {[%emt 0:00:00]} 52. Kd2 {[%emt 0:00:00]} Ke4 {[%emt 0:00:00]} 53. b4 {[%emt 0:00:00]} d4 {[%emt 0:00:00]} 54. bxa5 {[%emt 0:00:00]} Kd5 {[%emt 0:00:00]} 55. cxd4 {[%emt 0:00:00]} cxd4 {[%emt 0:00:00]} 56. Kd3 {[%emt 0:00:00]} Kc5 {[%emt 0:00:00]} 57. Kd2 {[%emt 0:00:00]} Kc6 {[%emt 0:00:00]} 58. Kd3 {[%emt 0:00:00]} Kc5 {[%emt 0:00:00]} 59. Ke4 {[%emt 0:00:00]} Nc2 {[%emt 0:00:00]} 60. Nb3+ {[%emt 0:00:00]} Kc6 {[%emt 0:00:00]} 61. Nxd4+ {[%emt 0:00:00]} Nxd4 {[%emt 0:00:00]} 62. Kxd4 {[%emt 0:00:00]} Kb7 {[%emt 0:00:00]} 63. Kc5 {[%emt 0:00:00]} Ka6 {[%emt 0:00:00]} 64. Kb4 {[%emt 0:00:00]} Ka7 {[%emt 0:00:00]} 65. Kb5 {[%emt 0:00:00]} Ka8 {[%emt 0:00:00]} 66. Kb6 {[%emt 0:00:00]} Kb8 {[%emt 0:00:00]} 67. a6 {[%emt 0:00:00]} Ka8 {[%emt 0:00:00]} 68. a5 {[%emt 0:00:00]} Kb8 {[%emt 0:00:00]} 69. Kc6 {[%emt 0:00:07]} Ka7 {[%emt 0:00:00]} 70. Kb5 {[%emt 0:00:06]} Ka8 {[%emt 0:00:00]} 71. Kb6 {[%emt 0:00:19]} Kb8 {[%emt 0:00:00]} 72. Kc6 {[%emt 0:00:30]} Ka7 {[%emt 0:00:00]} 73. Kb5 {[%emt 0:00:20]} Ka8 {[%emt 0:00:00]} 74. a7 {[%emt 0:00:14]} Kxa7 {[%emt 0:00:00]} 75. Kc5 {[%emt 0:00:09]} Ka6 {[%emt 0:00:00]} 76. Kb4 {[%emt 0:00:07]} Ka7 {[%emt 0:00:00]} 77. Ka4 {[%emt 0:00:13]} Ka6 {[%emt 0:00:00]} 78. Kb4 {[%emt 0:00:05]} Ka7 {[%emt 0:00:00]} 79. Ka4 {[%emt 0:00:13]} Ka6 {[%emt 0:00:00]} 80. Kb4 {[%emt 0:00:26]} Ka7 {[%emt 0:00:04]} 81. Kb5 {[%emt 0:00:40]} Kb7 {[%emt 0:00:00]} 82. a6+ {[%emt 0:00:07]} Ka8 {[%emt 0:00:00]} 83. Ka5 {[%emt 0:00:05]} Ka7 {[%emt 0:00:00]} 84. Kb5 {[%emt 0:00:07]} Ka8 {[%emt 0:00:00]} 85. Kb6 {[%emt 0:00:24]} Kb8 {[%emt 0:00:00]} 86. Kc6 {[%emt 0:00:08]} Ka7 {[%emt 0:00:00]} 87. Kb5 {[%emt 0:00:03]} Ka8 {[%emt 0:00:00]} 88. Kc6 {[%emt 0:00:13]} Ka7 {[%emt 0:00:00]} 89. Kb5 {[%emt 0:00:19]} Ka8 {[%emt 0:00:00]} 90. Kb6 {[%emt 0:00:17]} Kb8 {[%emt 0:00:00]} 91. a7+ {[%emt 0:00:07]} Ka8 {[%emt 0:00:00]} 92. Ka6 {[%emt 0:00:36]} 1/2-1/2